[Event "ESP-ch Teams Primera 2022"]
[Site "Sanxenxo Pontevedra"]
[Date "2022.09.17"]
[Round "1.18"]
[White "Recuenco Andres, Javier"]
[Black "Calzetta Ruiz, Monica"]
[Result "1/2-1/2"]
[ECO "B24"]
[WhiteElo "1925"]
[BlackElo "2227"]
[Annotator "TA"]
[PlyCount "149"]
[EventDate "2022.09.17"]
[EventType "team-tourn"]
[EventCountry "ESP"]
[SourceTitle "playchess.com"]
[Source "ChessBase"]
[SourceQuality "1"]
[TimeControl "5400+30"]

{[%evp 9,149,-19,-37,-22,-27,-27,-12,-27,-10,-10,-8,-49,-16,-29,-18,-30,-1,-25,0,-39,-4,-58,0,0,0,0,11,0,0,-25,-13,-61,-64,-175,-174,-357,-361,-332,-356,-530,-518,-418,-262,-269,0,0,232,-106,207,220,222,229,406,411,408,383,400,387,399,386,465,466,468,411,402,385,414,372,495,490,566,559,544,528,710,622,845,814,5293,2033,5297,5279,5273,5246,1359,0,569,-240,-237,-325,-187,-187,0,-179,325,324,326,303,852,845,657,374,1347,1360,1430,1414,1421,1414,1437,1437,1309,1306,889,364,1251,831,795,722,628,249,249,249,249,200,200,200,200,200,200,200,200,200,200,200,200,200,200,200,200,200,200,0]} 1. e4 {[%emt 0:00:04]} c5 {[%emt 0:00:08]} 2. Nc3 {[%emt 0:00:04]} Nc6 {[%emt 0:00:19]} 3. Bc4 {[%emt 0:00:30]} e6 {[%emt 0:00:39]} 4. a3 {[%emt 0:00:11]} Nf6 {[%emt 0:01:17]} 5. Ba2 {[%emt 0:00:23]} d5 {[%emt 0:01:12]} 6. exd5 {[%emt 0:04:21] B20: Sicilian: Unusual White 2nd moves.} exd5 {[%emt 0:00:33]} 7. d3 {[%emt 0:00:55]} Be7 {[%emt 0:01:21]} 8. h3 {[%emt 0:01:32] The position is equal.} O-O {[%emt 0:01:26]} 9. Nf3 {[%emt 0:01:16]} Be6 {[%emt 0:18:18] [#]} 10. Bf4 $146 {[%emt 0:16:57]} ({Predecessor:} 10. O-O Qd7 11. Nh2 Rad8 12. Ne2 Rfe8 13. Nf4 Bd6 14. c3 Qc7 15. g3 Qd7 16. Nxe6 Rxe6 {0-1 (22) Gonzalez,C-Campero,A Bolivar 2001}) 10... Re8 {[%emt 0:14:54]} 11. Ne2 {[%emt 0:06:58]} b5 {[%emt 0:06:23]} 12. O-O {[%emt 0:04:47]} a5 {[%emt 0:02:12]} 13. Ng5 {[%emt 0:08:24]} Bd7 {[%emt 0:09:13]} 14. Bh2 {[%emt 0:10:31]} (14. Nc3 $5 {[%cal Rc3d5]}) 14... Ra6 {[%emt 0:11:21]} 15. Nf4 {[%emt 0:02:55]} ({White should try} 15. Nf3 $11) 15... Nd4 {[%emt 0:06:46]} (15... Bd6 $15 16. Nf3 Ne7) 16. c3 $11 {[%emt 0:04:47]} Ne6 {[%emt 0:03:01]} 17. Ngxe6 {[%emt 0:02:24]} fxe6 {[%emt 0:00:05]} 18. Re1 {[%emt 0:03:45]} b4 {[%emt 0:03:31]} 19. Qf3 {[%emt 0:02:50]} Rf8 {[%emt 0:03:49]} 20. Qe2 {[%emt 0:07:43]} (20. axb4 $11 {is superior.} axb4 21. Bb3 Rxa1 22. Rxa1) 20... Bd6 $15 {[%emt 0:01:09]} 21. Kh1 {[%emt 0:01:32]} (21. Bg3 $15) 21... Qb8 $1 $19 {[%emt 0:03:00]} 22. g3 {[%emt 0:05:22]} (22. Qe3) 22... b3 {[%emt 0:01:23]} 23. Bb1 {[%emt 0:02:03]} e5 {[%emt 0:01:05] Against d4} 24. Nh5 {[%emt 0:06:25]} (24. Ng2 $142 d4 25. g4) 24... Nxh5 {[%emt 0:01:43]} 25. d4 {[%emt 0:00:56]} Nf6 {[%emt 0:00:58]} 26. dxe5 {[%emt 0:01:16]} (26. Qxa6 $2 Bb5 27. Qxa5 Bc7 28. Qxc7 Qxc7 $19) 26... Re8 $2 {[%emt 0:02:05]} 27. Qxa6 $11 {[%emt 0:00:44]} Bb5 $2 {[%emt 0:00:38]} 28. Bxh7+ $2 {[%emt 0:00:54]} (28. Qxa5 $2 Bc7 29. Qxc7 (29. Bxh7+ $2 Nxh7 30. Qxb5 Qxb5 $19) 29... Qxc7 $19) ({Only move:} 28. Qxd6 $18 Qxd6 29. Bxh7+ $1 {[%mdl 512]} Kxh7 30. exd6) 28... Kxh7 $4 {[%emt 0:00:33][%mdl 8192]} (28... Nxh7 $17 {stays on course.} 29. Qxd6 Qb7) 29. Qxd6 $18 {[%emt 0:00:11]} Qxd6 {[%emt 0:01:39]} 30. exd6 {[%emt 0:00:12] aiming for Rxe8.} Be2 $2 {[%emt 0:02:49]} (30... Ne4 31. g4 Nxf2+ 32. Kg2 Ne4) 31. Kg1 {[%emt 0:01:44]} d4 {[%emt 0:00:02]} 32. cxd4 {[%emt 0:01:15]} cxd4 {[%emt 0:00:01]} 33. f3 {[%emt 0:00:14]} d3 {[%emt 0:00:47]} 34. Kf2 {[%emt 0:00:25]} Rc8 {[%emt 0:00:36]} 35. g4 {[%emt 0:01:15][%cal Bg3g4,Bg4g5][%mdl 32]} Rc2 {[%emt 0:00:08]} 36. g5 {[%emt 0:00:44]} Nd7 {[%emt 0:00:10]} 37. Bf4 {[%emt 0:00:47]} Rxb2 {[%emt 0:00:50]} 38. Rac1 {[%emt 0:00:19] Hoping for Rc7.} (38. Rab1 Ra2 39. h4 Kg6 $18) 38... Rc2 {[%emt 0:01:29]} 39. Rxc2 {[%emt 0:00:58]} dxc2 {[%emt 0:00:52][%mdl 4096] Endgame KRB-KBN} 40. Bc1 {[%emt 0:00:10]} (40. Rxe2 $2 b2 41. Rxc2 (41. g6+ $2 Kxg6 42. Rxc2 b1=Q $19) 41... b1=Q $19) 40... Bb5 {[%emt 0:00:02]} 41. Re7 {[%emt 0:00:21]} Nc5 {[%emt 0:00:04]} 42. Ke3 {[%emt 0:00:27]} Nd3 {[%emt 0:00:14]} 43. d7 {[%emt 0:00:26]} Nxc1 {[%emt 0:02:15]} 44. d8=Q {[%emt 0:00:27]} (44. g6+ $142 Kxg6 45. d8=Q) 44... Nd3 {[%emt 0:00:09]} 45. Rc7 {[%emt 0:00:42] White threatens Qd5 and mate.} b2 {[%emt 0:00:26]} 46. g6+ {[%emt 0:01:16]} Kxg6 {[%emt 0:00:37] [#]} 47. Qd6+ $2 {[%emt 0:00:07]} ({White must play} 47. Rc6+ $3 $18 Bxc6 48. Qxd3+ Kf7 49. Qc4+ Kf8 50. Qxc2) 47... Kh7 $2 {[%emt 0:00:13][%mdl 8192] [#]} (47... Kh5 $1 $11 48. Qd5+ Kh6 49. Qd6+ (49. Qxb5 $2 c1=Q+ 50. Rxc1 bxc1=Q+ $19) 49... Kh5 50. Qd5+ Kh6 51. Qd6+ (51. Qxb5 $2 c1=Q+ 52. Rxc1 bxc1=Q+ $19) 51... Kh5) 48. Rxc2 $4 {[%emt 0:00:44][%mdl 8192]} (48. Rxg7+ $1 $18 {is the narrow road to win.} Kxg7 49. Qc7+ Kh6 50. Qxc2) 48... b1=Q $19 {[%emt 0:00:06]} 49. Rg2 {[%emt 0:00:46]} Qc1+ {[%emt 0:01:09]} (49... Ne1 $142 50. Rg3 Qc2 51. Rxg7+ (51. Qe5 Qe2+ 52. Kd4 Nc2+ 53. Kc3 Qxe5+ 54. Kxc2 Qe2+ 55. Kc3 Qd3+ 56. Kb2 Qd2+ 57. Kb1 Bd3+ 58. Ka1 Qc1+ 59. Ka2 Bc4#) 51... Kxg7 52. Qe7+ Kg6 53. Qe6+ Kg7 54. Qe5+ Kh6 55. Qf6+ Qg6 56. Qh8+ Qh7 57. Qf6+ Kh5 58. Qe5+ Kh4 59. Qxb5 Ng2+ 60. Kd4 Nf4 61. Qxa5 Qd3+ 62. Kc5 Qf5+ 63. Kb4 Nd5+ 64. Ka4 Qc2+ 65. Kb5 Qe2+ 66. Kc5 Qe3+ 67. Kc6 Qe6+ 68. Kc5 Qe3+ 69. Kc6 Qe6+ 70. Kc5 Kg3) 50. Kd4 {[%emt 0:00:15] Threatening mate with Qg6+.} Qc4+ {[%emt 0:00:26]} ({Worse is} 50... Nf4 51. Rg4 Qc4+ 52. Ke5 Nd3+ 53. Kf5 Qf7+ 54. Kg5 $17) 51. Ke3 {[%emt 0:00:32] [#] Intending Qg6+ and mate. Really sharp!} Nf4 {[%emt 0:00:27][%mdl 8192] Prevents Qg6+.} 52. Qxf4 $18 {[%emt 0:00:29] KQR-KQB} Qc1+ {[%emt 0:00:50]} 53. Rd2 {[%emt 0:00:16] And now Qf5+ would win.} ({Wrong is} 53. Ke4 $2 {[#]} Bd3+ $1 {[%mdl 512]} 54. Kxd3 Qxf4 $19) 53... Qxa3+ $2 {[%emt 0:00:36]} (53... Qg1+ 54. Ke4 Bc6+ 55. Ke5 Qc5+ 56. Ke6 Qh5 57. Qf5+ Qxf5+ 58. Kxf5 Bxf3) 54. Kf2 {[%emt 0:00:13] White wants to mate with Qf5+.} Qc5+ {[%emt 0:00:50]} 55. Qd4 {[%emt 0:00:46]} Qxd4+ {[%emt 0:00:30]} (55... Qe7 56. Qd5 Qe8 57. Qf5+ Kg8) 56. Rxd4 {[%emt 0:00:09] KR-KB} a4 {[%emt 0:00:02]} 57. Rd5 {[%emt 0:00:26]} Bc4 {[%emt 0:00:20]} 58. Ra5 {[%emt 0:00:13]} Bb3 {[%emt 0:00:07]} 59. Kg3 {[%emt 0:00:14]} Kg6 {[%emt 0:00:40]} 60. Kf4 {[%emt 0:00:25]} Kh6 {[%emt 0:00:27]} 61. h4 {[%emt 0:00:29]} (61. Ke5 $142 Kh5 62. f4) 61... g6 $2 {[%emt 0:00:03]} (61... Bd1 62. Ra6+ Kh5) 62. Ke3 {[%emt 0:00:43]} Bc2 {[%emt 0:00:10]} 63. Kd4 {[%emt 0:00:19]} Bb3 {[%emt 0:00:04]} 64. Kc3 $2 {[%emt 0:00:31]} (64. Ra7 Bd1 65. Ke4) 64... Bd1 {[%emt 0:00:09] White is clearly better.} 65. f4 {[%emt 0:00:12]} Kg7 {[%emt 0:00:45]} 66. Rg5 {[%emt 0:00:36] Strongly threatening f5.} Kh6 {[%emt 0:00:16]} 67. f5 {[%emt 0:00:29]} gxf5 {[%emt 0:00:05]} 68. Rxf5 {[%emt 0:00:07]} Bb3 {[%emt 0:00:21]} 69. Ra5 {[%emt 0:00:15]} Kg6 {[%emt 0:00:05]} 70. Kd4 {[%emt 0:00:09]} Bc2 {[%emt 0:00:23]} 71. Ke3 {[%emt 0:00:16]} Kh6 {[%emt 0:00:15]} 72. Kf4 {[%emt 0:00:11]} Bb3 {[%emt 0:00:21]} 73. Kg3 {[%emt 0:00:10]} Bd1 {[%emt 0:00:14]} 74. Rd5 {[%emt 0:00:31]} Bb3 {[%emt 0:00:12]} 75. Ra5 $2 {Weighted Error Value: White=0.36/Black=0.62} ({White should play} 75. Rb5 $18) 1/2-1/2

[Event "ESP-ch Teams Primera 2022"]
[Site "Sanxenxo Pontevedra"]
[Date "2022.09.17"]
[Round "1.19"]
[White "Vazquez Igarza, Renier"]
[Black "Vallejo Pons, Francisco"]
[Result "1/2-1/2"]
[ECO "A40"]
[WhiteElo "2535"]
[BlackElo "2711"]
[Annotator "ChessBase"]
[PlyCount "65"]
[EventDate "2022.09.17"]
[EventType "team-tourn"]
[EventCountry "ESP"]
[SourceTitle "playchess.com"]
[Source "ChessBase"]
[SourceQuality "1"]
[TimeControl "5400+30"]

1. d4 e6 2. c4 b6 3. e4 Bb4+ 4. Bd2 Bxd2+ 5. Qxd2 d5 6. Bd3 Nc6 7. Ne2 dxe4 8. Bxe4 Bb7 9. Nbc3 Nf6 10. Bxc6+ Bxc6 11. O-O-O O-O 12. f3 Rb8 13. Nf4 b5 14. d5 exd5 15. cxb5 Bxb5 16. Nfxd5 Bc6 17. Ne3 Qc8 18. Qd4 Bd7 19. Rd2 c5 20. Qf4 Rb4 21. Qd6 Rb6 22. Qf4 Rb4 23. Qd6 Rb6 24. Qf4 Be6 25. Rhd1 Re8 26. Nc2 h6 27. g4 Nh7 28. h4 Nf8 29. h5 Nh7 30. Qa4 Nf6 31. Qf4 Nh7 32. Qa4 Nf6 33. Qf4 1/2-1/2

[Event "ESP-ch Teams Primera 2022"]
[Site "Sanxenxo Pontevedra"]
[Date "2022.09.17"]
[Round "1.20"]
[White "Narayanan.S.L"]
[Black "Pulvett Marin, Daniel Eduardo"]
[Result "1-0"]
[ECO "E71"]
[WhiteElo "2657"]
[BlackElo "2497"]
[Annotator "ChessBase"]
[PlyCount "103"]
[EventDate "2022.09.17"]
[EventType "team-tourn"]
[EventCountry "ESP"]
[SourceTitle "playchess.com"]
[Source "ChessBase"]
[SourceQuality "1"]
[TimeControl "5400+30"]

1. d4 Nf6 2. c4 g6 3. Nc3 Bg7 4. e4 d6 5. h3 O-O 6. Be3 e5 7. d5 Na6 8. Nf3 Nh5 9. a3 f5 10. b4 Kh8 11. Rc1 c5 12. Rb1 h6 13. Bd3 Nf4 14. Bxf4 exf4 15. Ne2 Qf6 16. O-O g5 17. exf5 Bxf5 18. Bxf5 Qxf5 19. bxc5 Nxc5 20. Ned4 Qg6 21. Ne6 Nxe6 22. dxe6 Qxe6 23. Rxb7 Rfb8 24. Qb1 Rxb7 25. Qxb7 Rc8 26. Re1 Qxc4 27. Qxa7 Qc6 28. Qf7 Rf8 29. Qg6 Qd7 30. Re6 Qf7 31. Qe4 Qf5 32. Qe2 d5 33. a4 d4 34. Rd6 Rc8 35. Kh2 Qb1 36. Qe6 Rg8 37. Nxd4 f3 38. Nxf3 Rf8 39. Rc6 Qb8+ 40. Kg1 Re8 41. Qc4 Qb1+ 42. Kh2 Qf5 43. Rc5 Qd7 44. a5 Qd6+ 45. g3 Qb8 46. Kg2 Rf8 47. Qd5 Qa7 48. Rc6 Qe7 49. a6 Qa3 50. Ne5 Rxf2+ 51. Kxf2 Qb2+ 52. Kf3 1-0

[Event "ESP-ch Teams Primera 2022"]
[Site "Sanxenxo Pontevedra"]
[Date "2022.09.17"]
[Round "1.21"]
[White "Alonso Garcia, Aaron"]
[Black "Fier, Alexandr"]
[Result "1/2-1/2"]
[ECO "B66"]
[WhiteElo "2427"]
[BlackElo "2583"]
[Annotator "ChessBase"]
[PlyCount "99"]
[EventDate "2022.09.17"]
[EventType "team-tourn"]
[EventCountry "ESP"]
[SourceTitle "playchess.com"]
[Source "ChessBase"]
[SourceQuality "1"]
[TimeControl "5400+30"]

1. e4 {[%emt 0:00:32]} c5 {[%emt 0:00:05]} 2. Nf3 {[%emt 0:00:21]} d6 {[%emt 0:00:05]} 3. d4 {[%emt 0:00:06]} cxd4 {[%emt 0:00:03]} 4. Nxd4 {[%emt 0:00:04]} Nf6 {[%emt 0:00:05]} 5. Nc3 {[%emt 0:00:04]} Nc6 {[%emt 0:00:04]} 6. Bg5 {[%emt 0:00:32]} e6 {[%emt 0:00:06]} 7. Qd2 {[%emt 0:00:18]} a6 {[%emt 0:00:04]} 8. Nxc6 {[%emt 0:01:49]} bxc6 {[%emt 0:00:04]} 9. O-O-O {[%emt 0:00:05]} Be7 {[%emt 0:00:04]} 10. Bxf6 {[%emt 0:00:04]} gxf6 {[%emt 0:00:04]} 11. Bc4 {[%emt 0:00:08]} Bb7 {[%emt 0:00:03]} 12. Bb3 {[%emt 0:00:05]} Qc7 {[%emt 0:00:03]} 13. f4 {[%emt 0:09:17]} O-O-O {[%emt 0:01:01]} 14. f5 {[%emt 0:05:17]} exf5 {[%emt 0:02:11]} 15. Qf2 {[%emt 0:11:55]} fxe4 {[%emt 0:01:16]} 16. Nxe4 {[%emt 0:01:33]} d5 {[%emt 0:00:06]} 17. Nc5 {[%emt 0:05:11]} Bxc5 {[%emt 0:03:35]} 18. Qxc5 {[%emt 0:00:02]} Rhe8 {[%emt 0:00:19]} 19. Rd2 {[%emt 0:02:49]} Re4 {[%emt 0:03:05]} 20. c4 {[%emt 0:07:52]} Qd6 {[%emt 0:07:29]} 21. Qxd6 {[%emt 0:11:04]} Rxd6 {[%emt 0:00:04]} 22. cxd5 {[%emt 0:01:43]} cxd5 {[%emt 0:00:05]} 23. Bc2 {[%emt 0:01:24]} Rh4 {[%emt 0:03:13]} 24. g3 {[%emt 0:00:28]} Rh5 {[%emt 0:01:40]} 25. h4 {[%emt 0:08:42]} h6 {[%emt 0:11:07]} 26. Rf1 {[%emt 0:02:53]} Re5 {[%emt 0:02:54]} 27. Rdf2 {[%emt 0:00:35]} Re3 {[%emt 0:00:10]} 28. Rxf6 {[%emt 0:00:22]} Rxf6 {[%emt 0:00:04]} 29. Rxf6 {[%emt 0:00:02]} Rxg3 {[%emt 0:00:05]} 30. Rxh6 {[%emt 0:02:47]} Rg1+ {[%emt 0:00:15]} 31. Bd1 {[%emt 0:04:14]} Kd7 {[%emt 0:01:24]} 32. Rb6 {[%emt 0:02:10]} Bc6 {[%emt 0:00:51]} 33. Rxa6 {[%emt 0:03:28]} d4 {[%emt 0:00:04]} 34. Ra3 {[%emt 0:01:20]} Kd6 {[%emt 0:00:34]} 35. Rh3 {[%emt 0:01:24]} Bd7 {[%emt 0:01:02]} 36. Rd3 {[%emt 0:05:13]} Ke5 {[%emt 0:00:43]} 37. Kd2 {[%emt 0:02:07]} Rg2+ {[%emt 0:00:09]} 38. Ke1 {[%emt 0:02:11]} Rxb2 {[%emt 0:00:26]} 39. Rd2 {[%emt 0:00:01]} Rb1 {[%emt 0:00:18]} 40. Kf2 {[%emt 0:00:01]} Bf5 {[%emt 0:00:42]} 41. h5 {[%emt 0:02:31]} d3 {[%emt 0:01:22]} 42. Ke3 {[%emt 0:01:27]} Be4 {[%emt 0:00:05]} 43. h6 {[%emt 0:03:24]} f5 {[%emt 0:00:52]} 44. Bf3 {[%emt 0:00:33]} Rf1 {[%emt 0:01:34]} 45. Bxe4 {[%emt 0:01:14]} fxe4 {[%emt 0:00:05]} 46. Rh2 {[%emt 0:01:10]} Re1+ {[%emt 0:05:51]} 47. Kd2 {[%emt 0:00:22]} Rb1 {[%emt 0:00:04]} 48. Ke3 {[%emt 0:02:10]} Re1+ {[%emt 0:00:04]} 49. Kd2 {[%emt 0:01:03]} Rb1 {[%emt 0:00:04]} 50. Ke3 {[%emt 0:00:50]} 1/2-1/2

[Event "ESP-ch Teams Primera 2022"]
[Site "Sanxenxo Pontevedra"]
[Date "2022.09.17"]
[Round "1.22"]
[White "Glavina, Pablo"]
[Black "Quispe Arteaga, Gabriel"]
[Result "1/2-1/2"]
[ECO "A46"]
[WhiteElo "2400"]
[BlackElo "2373"]
[Annotator "ChessBase"]
[PlyCount "74"]
[EventDate "2022.09.17"]
[EventType "team-tourn"]
[EventCountry "ESP"]
[SourceTitle "playchess.com"]
[Source "ChessBase"]
[SourceQuality "1"]
[TimeControl "5400+30"]

1. d4 {[%emt 0:00:04]} Nf6 {[%emt 0:00:06]} 2. Nf3 {[%emt 0:00:13]} e6 {[%emt 0:00:06]} 3. g3 {[%emt 0:00:13]} b5 {[%emt 0:00:15]} 4. Bg2 {[%emt 0:00:23]} Bb7 {[%emt 0:00:06]} 5. Bg5 {[%emt 0:00:28]} h6 {[%emt 0:09:30]} 6. Bxf6 {[%emt 0:00:17]} Qxf6 {[%emt 0:00:12]} 7. O-O {[%emt 0:03:48]} c5 {[%emt 0:13:02]} 8. c3 {[%emt 0:03:55]} Qd8 {[%emt 0:00:07]} 9. Nbd2 {[%emt 0:05:36]} Be7 {[%emt 0:00:43]} 10. e4 {[%emt 0:01:02]} O-O {[%emt 0:00:30]} 11. Qe2 {[%emt 0:00:52]} Qb6 {[%emt 0:09:05]} 12. Rfe1 {[%emt 0:08:28]} cxd4 {[%emt 0:03:05]} 13. cxd4 {[%emt 0:00:27]} Nc6 {[%emt 0:00:40]} 14. Nb3 {[%emt 0:06:24]} Rac8 {[%emt 0:03:56]} 15. Bf1 {[%emt 0:07:53]} a6 {[%emt 0:07:30]} 16. Rac1 {[%emt 0:02:08]} Na5 {[%emt 0:05:53]} 17. Nbd2 {[%emt 0:20:01]} Nc6 {[%emt 0:01:50]} 18. Nb3 {[%emt 0:00:06]} Na5 {[%emt 0:01:09]} 19. Nbd2 {[%emt 0:00:04]} Rxc1 {[%emt 0:02:47]} 20. Rxc1 {[%emt 0:00:06]} Rc8 {[%emt 0:00:08]} 21. Qd1 {[%emt 0:04:40]} Rxc1 {[%emt 0:02:51]} 22. Qxc1 {[%emt 0:00:09]} Nc6 {[%emt 0:00:05]} 23. Qc3 {[%emt 0:03:48]} Qa5 {[%emt 0:11:53]} 24. Qxa5 {[%emt 0:01:54]} Nxa5 {[%emt 0:00:03]} 25. Bd3 {[%emt 0:00:59]} Nc6 {[%emt 0:00:55]} 26. a3 {[%emt 0:04:04]} d6 {[%emt 0:00:30]} 27. Kf1 {[%emt 0:00:27]} Bd8 {[%emt 0:00:06]} 28. b4 {[%emt 0:01:26]} Bb6 {[%emt 0:01:33]} 29. Nb3 {[%emt 0:00:05]} Kf8 {[%emt 0:00:31]} 30. Ke2 {[%emt 0:00:11]} f6 {[%emt 0:00:19]} 31. h4 {[%emt 0:05:20]} g5 {[%emt 0:00:09]} 32. hxg5 {[%emt 0:00:06]} hxg5 {[%emt 0:00:06]} 33. g4 {[%emt 0:01:28]} Bc8 {[%emt 0:08:29]} 34. Bc2 {[%emt 0:03:19]} e5 {[%emt 0:01:27]} 35. d5 {[%emt 0:00:04]} Ne7 {[%emt 0:00:05]} 36. Nh2 {[%emt 0:00:04]} Ng6 {[%emt 0:00:03]} 37. f3 {[%emt 0:00:40]} Nf4+ {[%emt 0:00:25]} 1/2-1/2

[Event "ESP-ch Teams Primera 2022"]
[Site "Sanxenxo Pontevedra"]
[Date "2022.09.17"]
[Round "1.23"]
[White "Ruiz Buendia, Miguel"]
[Black "Quintin Navarro, Alberto"]
[Result "0-1"]
[ECO "C54"]
[WhiteElo "2293"]
[BlackElo "2372"]
[Annotator "ChessBase"]
[PlyCount "114"]
[EventDate "2022.09.17"]
[EventType "team-tourn"]
[EventCountry "ESP"]
[SourceTitle "playchess.com"]
[Source "ChessBase"]
[SourceQuality "1"]
[TimeControl "5400+30"]

1. e4 {[%emt 0:00:07]} e5 {[%emt 0:00:04]} 2. Nf3 {[%emt 0:00:04]} Nc6 {[%emt 0:00:05]} 3. Bc4 {[%emt 0:00:05]} Bc5 {[%emt 0:00:05]} 4. c3 {[%emt 0:00:22]} Nf6 {[%emt 0:00:04]} 5. d4 {[%emt 0:00:11]} exd4 {[%emt 0:00:07]} 6. e5 {[%emt 0:00:10]} d5 {[%emt 0:00:29]} 7. Bb5 {[%emt 0:00:08]} Ne4 {[%emt 0:00:29]} 8. cxd4 {[%emt 0:00:16]} Bb6 {[%emt 0:00:18]} 9. Nc3 {[%emt 0:00:27]} Bg4 {[%emt 0:00:19]} 10. Be3 {[%emt 0:00:47]} O-O {[%emt 0:00:34]} 11. h3 {[%emt 0:00:07]} Bh5 {[%emt 0:00:21]} 12. Qc2 {[%emt 0:00:17]} Nxc3 {[%emt 0:01:01]} 13. bxc3 {[%emt 0:01:37]} f6 {[%emt 0:00:47]} 14. exf6 {[%emt 0:08:16]} Qxf6 {[%emt 0:00:42]} 15. Be2 {[%emt 0:00:08]} Qf7 {[%emt 0:14:06]} 16. O-O {[%emt 0:11:46]} Bxf3 {[%emt 0:00:53]} 17. Bxf3 {[%emt 0:00:40]} Ne7 {[%emt 0:00:21]} 18. a4 {[%emt 0:11:24]} c6 {[%emt 0:02:57]} 19. Rae1 {[%emt 0:01:47]} Nf5 {[%emt 0:03:59]} 20. Bc1 {[%emt 0:05:32]} Bc7 {[%emt 0:05:03]} 21. Be2 {[%emt 0:01:09]} Rfe8 {[%emt 0:13:27]} 22. Bd3 {[%emt 0:01:57]} g6 {[%emt 0:00:15]} 23. Rxe8+ {[%emt 0:19:26]} Rxe8 {[%emt 0:00:14]} 24. g4 {[%emt 0:01:04]} Nd6 {[%emt 0:02:52]} 25. f4 {[%emt 0:01:50]} Qf6 {[%emt 0:07:38]} 26. f5 {[%emt 0:02:15]} g5 {[%emt 0:06:10]} 27. Qd2 {[%emt 0:05:21]} h6 {[%emt 0:01:39]} 28. Re1 {[%emt 0:01:57]} Ne4 {[%emt 0:02:28]} 29. Qg2 {[%emt 0:01:20]} Qd6 {[%emt 0:02:34]} 30. Bxe4 {[%emt 0:01:33]} dxe4 {[%emt 0:00:22]} 31. Be3 {[%emt 0:04:09]} Qa3 {[%emt 0:10:54]} 32. Qc2 {[%emt 0:07:23]} Qd6 {[%emt 0:00:29]} 33. Qf2 {[%emt 0:00:26]} Kf7 {[%emt 0:04:57]} 34. h4 {[%emt 0:01:40]} Kf6 {[%emt 0:00:55]} 35. Kf1 {[%emt 0:01:33]} b6 {[%emt 0:00:56]} 36. Rd1 {[%emt 0:02:13]} Qg3 {[%emt 0:02:58]} 37. Qxg3 {[%emt 0:01:10]} Bxg3 {[%emt 0:00:06]} 38. hxg5+ {[%emt 0:02:37]} hxg5 {[%emt 0:00:06]} 39. Kg2 {[%emt 0:00:29]} Bf4 {[%emt 0:00:13]} 40. Bf2 {[%emt 0:02:37]} e3 {[%emt 0:04:20]} 41. Re1 {[%emt 0:01:44]} c5 {[%emt 0:00:18]} 42. Bg1 {[%emt 0:00:46]} cxd4 {[%emt 0:00:34]} 43. cxd4 {[%emt 0:00:04]} Re4 {[%emt 0:02:53]} 44. Kf3 {[%emt 0:02:08]} Rxd4 {[%emt 0:00:10]} 45. Bxe3 {[%emt 0:00:12]} Rxa4 {[%emt 0:00:37]} 46. Bxf4 {[%emt 0:00:42]} Rxf4+ {[%emt 0:00:06]} 47. Kg3 {[%emt 0:00:02]} Rb4 {[%emt 0:00:14]} 48. Re6+ {[%emt 0:00:17]} Kf7 {[%emt 0:00:04]} 49. Rg6 {[%emt 0:02:02]} Rb3+ {[%emt 0:03:27]} 50. Kf2 {[%emt 0:00:08]} a5 {[%emt 0:00:28]} 51. Rxg5 {[%emt 0:00:09]} a4 {[%emt 0:00:26]} 52. Rh5 {[%emt 0:00:14]} Rb5 {[%emt 0:04:21]} 53. Rh7+ {[%emt 0:00:43]} Kg8 {[%emt 0:00:20]} 54. Rc7 {[%emt 0:01:11]} a3 {[%emt 0:00:23]} 55. Rc3 {[%emt 0:00:41]} a2 {[%emt 0:00:09]} 56. Rc1 {[%emt 0:00:25]} Rb1 {[%emt 0:00:08]} 57. Rc8+ {[%emt 0:00:09]} Kf7 {[%emt 0:00:21]} 0-1

[Event "ESP-ch Teams Primera 2022"]
[Site "Sanxenxo Pontevedra"]
[Date "2022.09.17"]
[Round "1.24"]
[White "Vega Gutierrez, Sabrina"]
[Black "Pablos Tenrero, Raquel"]
[Result "1-0"]
[ECO "B32"]
[WhiteElo "2395"]
[BlackElo "1985"]
[Annotator "ChessBase"]
[PlyCount "95"]
[EventDate "2022.09.17"]
[EventType "team-tourn"]
[EventCountry "ESP"]
[SourceTitle "playchess.com"]
[Source "ChessBase"]
[SourceQuality "1"]
[TimeControl "5400+30"]

1. e4 {[%emt 0:00:05]} c5 {[%emt 0:00:08]} 2. Nf3 {[%emt 0:00:08]} Nc6 {[%emt 0:00:13]} 3. d4 {[%emt 0:00:07]} cxd4 {[%emt 0:00:12]} 4. Nxd4 {[%emt 0:00:06]} e5 {[%emt 0:00:08]} 5. Nb5 {[%emt 0:00:08]} d6 {[%emt 0:00:11]} 6. c4 {[%emt 0:00:15]} Be6 {[%emt 0:00:35]} 7. N5c3 {[%emt 0:01:30]} g6 {[%emt 0:00:22]} 8. Bd3 {[%emt 0:00:17]} Bg7 {[%emt 0:00:20]} 9. O-O {[%emt 0:00:53]} Nge7 {[%emt 0:01:02]} 10. Nd5 {[%emt 0:01:03]} O-O {[%emt 0:01:05]} 11. Nbc3 {[%emt 0:00:16]} Nd4 {[%emt 0:04:26]} 12. Bg5 {[%emt 0:03:09]} f6 {[%emt 0:03:37]} 13. Be3 {[%emt 0:00:25]} Nxd5 {[%emt 0:07:42]} 14. cxd5 {[%emt 0:08:10]} Bd7 {[%emt 0:00:21]} 15. Bxd4 {[%emt 0:19:07]} exd4 {[%emt 0:00:09]} 16. Ne2 {[%emt 0:00:10]} Qb6 {[%emt 0:08:42]} 17. Nf4 {[%emt 0:08:14]} f5 {[%emt 0:32:50]} 18. exf5 {[%emt 0:08:06]} Bxf5 {[%emt 0:00:09]} 19. Ne6 {[%emt 0:04:05]} Bxe6 {[%emt 0:13:30]} 20. dxe6 {[%emt 0:00:07]} Rae8 {[%emt 0:00:28]} 21. f4 {[%emt 0:12:23]} Qd8 {[%emt 0:16:36]} 22. Qg4 {[%emt 0:01:42]} Qe7 {[%emt 0:06:01]} 23. Rae1 {[%emt 0:13:38]} Rf6 {[%emt 0:00:49]} 24. Re2 {[%emt 0:04:50]} Ref8 {[%emt 0:00:29]} 25. g3 {[%emt 0:00:13]} Kh8 {[%emt 0:00:47]} 26. h4 {[%emt 0:03:53]} Re8 {[%emt 0:01:31]} 27. Rfe1 {[%emt 0:00:08]} a6 {[%emt 0:00:53]} 28. h5 {[%emt 0:05:03]} gxh5 {[%emt 0:00:26]} 29. Qxh5 {[%emt 0:00:06]} Rh6 {[%emt 0:00:03]} 30. Qg4 {[%emt 0:01:10]} Rg8 {[%emt 0:00:43]} 31. Rh2 {[%emt 0:01:34]} Rxh2 {[%emt 0:00:52]} 32. Kxh2 {[%emt 0:00:05]} Bf6 {[%emt 0:00:06]} 33. Qh5 {[%emt 0:01:55]} Rg7 {[%emt 0:00:53]} 34. g4 {[%emt 0:01:32]} Qf8 {[%emt 0:00:25]} 35. Qf5 {[%emt 0:01:15]} Qd8 {[%emt 0:00:43]} 36. Re2 {[%emt 0:02:08]} Be7 {[%emt 0:00:20]} 37. Kg3 {[%emt 0:00:25]} Qg8 {[%emt 0:00:42]} 38. Rh2 {[%emt 0:00:17]} b5 {[%emt 0:00:22]} 39. Kf3 {[%emt 0:00:27]} Qa8+ {[%emt 0:00:31]} 40. Be4 {[%emt 0:00:04]} Qg8 {[%emt 0:00:07]} 41. Rh6 {[%emt 0:01:19]} Bd8 {[%emt 0:00:49]} 42. Qh5 {[%emt 0:00:19]} Be7 {[%emt 0:00:32]} 43. Bxh7 {[%emt 0:00:36]} Rxh7 {[%emt 0:00:27]} 44. Rxh7+ {[%emt 0:00:02]} Qxh7 {[%emt 0:00:09]} 45. Qe8+ {[%emt 0:00:05]} Qg8 {[%emt 0:00:44]} 46. Qxe7 {[%emt 0:00:10]} Qa8+ {[%emt 0:00:34]} 47. Kg3 {[%emt 0:00:20]} Qe4 {[%emt 0:00:36]} 48. Qf8+ {[%emt 0:00:57]} 1-0